bitfinex/quotes_BTCUSD_20250303
["timestamp","ask_amount","ask_price","bid_price","bid_amount"]
[1741032822867,0.01566817,86025.0,86011.0,0.00162728]
[1741032823470,0.01566817,86025.0,86015.0,0.232516]
[1741032823813,0.01566817,86025.0,86024.0,0.232493]
[1741032824157,0.01085876,86043.0,86036.0,0.1]
[1741032824359,0.0003398,86070.0,86046.0,0.2]
[1741032824604,4.6e-07,86060.0,86059.0,0.732398]
[1741032824817,0.0003398,86070.0,86059.0,0.732398]
[1741032824818,0.0003398,86070.0,86065.0,0.532382]
[1741032825346,0.0003398,86070.0,86063.0,0.0681]
[1741032825554,0.0003398,86070.0,86048.0,0.0461]
[1741032825760,0.0003398,86070.0,86051.0,0.00011906]
[1741032825962,0.0003398,86070.0,86052.0,0.0016263]
[1741032826168,0.00045899,86066.0,86065.0,0.232382]
[1741032826578,0.00045899,86066.0,86063.0,0.232387]
[1741032826783,0.00045899,86066.0,86064.0,0.0016262]
[1741032826986,0.00045899,86066.0,86047.0,0.00162639]
[1741032827194,0.0003609,86066.0,86065.0,0.232382]
[1741032827539,0.0003609,86066.0,86065.0,0.532382]
[1741032827951,0.0003398,86070.0,86066.0,0.332379]
[1741032828156,0.0003398,86070.0,86066.0,0.532379]
[1741032828371,0.015549,86078.0,86066.0,0.532379]
[1741032828579,0.015549,86078.0,86076.0,0.532352]
[1741032828794,0.00041,86112.0,86085.0,0.3]
[1741032829051,0.00041,86112.0,86076.0,0.3]
[1741032829052,0.01314991,86101.0,86100.0,0.40503335]
[1741032829255,0.00041,86112.0,86111.0,0.70500335]
[1741032829429,0.0001697,86153.0,86122.0,0.632228]
[1741032829628,0.0001697,86153.0,86130.0,0.532207]
[1741032829870,0.01594562,86131.0,86130.0,0.232207]
[1741032830291,0.01594562,86131.0,86130.0,0.532207]
[1741032830921,0.01594562,86131.0,86130.0,0.3]
[1741032831142,0.01594562,86131.0,86107.0,0.1]
[1741032831345,0.01594562,86131.0,86116.0,0.232244]
[1741032831555,0.01594562,86131.0,86117.0,0.00162519]
[1741032831729,0.01594562,86131.0,86115.0,0.19816]
[1741032831928,0.01594562,86131.0,86116.0,0.00081154]
[1741032832131,0.01594562,86131.0,86130.0,0.232207]
[1741032833096,0.00203119,86194.0,86133.0,0.1]
[1741032833245,0.00011905,86194.0,86134.0,0.00080946]
[1741032833659,0.23204,86192.0,86126.0,0.00081064]
[1741032833887,0.40272203,86191.0,86126.0,0.00081064]
[1741032834093,0.2321,86170.0,86127.0,0.232215]
[1741032834296,0.00011905,86194.0,86128.0,0.000811]
[1741032834297,0.232048,86189.0,86128.0,0.000811]
[1741032834499,0.232048,86189.0,86116.0,0.29808]
[1741032834500,0.00203077,86188.0,86121.0,0.1]
[1741032834700,0.00203077,86188.0,86116.0,0.19808]
[1741032834701,0.203076,86187.0,86122.0,0.00081035]
[1741032834913,0.00203098,86186.0,86122.0,0.00081035]
[1741032835072,0.196218,86185.0,86122.0,0.00081035]
[1741032835278,0.0020312,86184.0,86122.0,0.00081035]
[1741032835718,0.258431,86183.0,86130.0,0.232204]
[1741032835961,0.232121,86162.0,86131.0,0.00081091]
[1741032836113,0.232129,86159.0,86116.0,0.19808]
[1741032836314,0.00203142,86158.0,86116.0,0.19808]
[1741032836531,0.00203146,86172.0,86116.0,0.19808]
[1741032836714,0.108063,86171.0,86095.0,0.01555]
[1741032836892,0.00203168,86170.0,86107.0,0.19796]
[1741032837096,2.459002,86169.0,86105.0,0.27952]
[1741032837319,0.00203186,86168.0,86099.0,0.23229]
[1741032837530,0.1,86161.0,86095.0,0.01555]
[1741032837727,4.00363611,86160.0,86096.0,0.232296]
[1741032837931,1.73299,86159.0,86111.0,0.232255]
[1741032838135,0.01820491,86150.0,86112.0,0.232254]
[1741032838309,0.00215046,86171.0,86114.0,0.23225]
[1741032838512,0.00215046,86171.0,86119.0,0.232235]
[1741032840507,0.698948,86096.0,86095.0,0.01594662]
[1741032840829,0.532344,86079.0,86078.0,0.01555]
[1741032841109,0.532344,86079.0,86011.0,0.01555]
[1741032841110,0.532439,86044.0,86043.0,0.00210059]
[1741032841326,0.532439,86044.0,86043.0,0.0022196]
[1741032841686,0.742656,86044.0,86043.0,0.0022196]
[1741032842318,0.01555,86052.0,86043.0,0.0022196]
[1741032842560,0.01822693,86067.0,86053.0,0.232414]
[1741032842879,0.02025378,86092.0,86043.0,0.0022196]
[1741032843049,0.0455,86106.0,86043.0,0.0022196]
[1741032843285,0.506092,86105.0,86052.0,0.07926378]
[1741032843506,0.034975,86118.0,86069.0,0.07926378]
[1741032843725,0.02073622,86116.0,86051.0,0.07926378]
[1741032843961,4.12130032,86115.0,86057.0,0.07926378]
[1741032844190,0.232287,86101.0,86072.0,0.07926378]
[1741032844376,0.23224,86118.0,86083.0,0.07926378]
[1741032844550,0.23224,86118.0,86079.0,0.0815]
[1741032844551,0.232283,86102.0,86079.0,0.16076378]
[1741032844889,0.115549,86166.0,86103.0,0.07926378]
[1741032845092,0.115549,86166.0,86116.0,0.07926378]
[1741032845093,0.00202932,86147.0,86116.0,0.07926378]
[1741032845313,0.232129,86159.0,86127.0,0.07926378]
[1741032845521,0.015549,86166.0,86137.0,0.07926378]
[1741032845729,0.232125,86161.0,86133.0,0.07926378]
[1741032845947,0.00039687,86147.0,86146.0,0.07926378]
[1741032846152,0.00039687,86147.0,86146.0,0.06326378]
[1741032846355,0.00039687,86147.0,86146.0,0.29542778]
[1741032846568,0.015549,86166.0,86165.0,0.29537578]
[1741032846774,0.015549,86166.0,86165.0,0.06326378]
[1741032846980,0.01566801,86166.0,86165.0,0.06326378]
[1741032847387,0.01566801,86166.0,86165.0,0.29537578]
[1741032847603,0.01566801,86166.0,86156.0,0.06326378]
[1741032847812,0.01566801,86166.0,86160.0,0.232125]
[1741032848067,0.01566801,86166.0,86165.0,0.29537578]
[1741032848272,0.01566801,86166.0,86147.0,0.3]
[1741032848474,0.01566801,86166.0,86158.0,0.06326378]
[1741032848677,0.01566801,86166.0,86165.0,0.06326378]
[1741032848874,0.01566801,86166.0,86165.0,0.29537578]
[1741032849088,0.01566801,86166.0,86165.0,0.37497578]
[1741032849655,0.015549,86201.0,86165.0,0.67497578]
[1741032849860,0.015549,86201.0,86171.0,0.29535978]
[1741032850240,0.015549,86201.0,86171.0,0.06326378]
[1741032850436,0.232032,86195.0,86171.0,0.00162421]
[1741032850646,0.2321,86170.0,86160.0,0.00162427]
[1741032850867,0.3,86189.0,86163.0,0.06326378]
[1741032851070,0.00203066,86182.0,86146.0,0.07511901]
[1741032851269,0.3,86170.0,86146.0,0.00011901]
[1741032851468,0.015549,86201.0,86157.0,0.0358883]
[1741032851772,0.17595212,86227.0,86165.0,0.1]
[1741032851964,0.3,86225.0,86161.0,0.2]
[1741032852169,0.232022,86199.0,86174.0,0.1]
[1741032852389,0.3,86225.0,86175.0,0.00162436]
[1741032852590,0.093149,86236.0,86182.0,0.1]
[1741032852591,2.52108992,86224.0,86182.0,0.1]
[1741032852864,0.3,86211.0,86165.0,0.0465]
[1741032853093,0.3,86199.0,86174.0,0.1]
[1741032853297,0.093149,86236.0,86180.0,0.1]
[1741032853298,0.015549,86236.0,86180.0,0.1]
[1741032853457,0.015549,86236.0,86179.0,0.1]
[1741032853458,0.231986,86212.0,86211.0,0.00182205]
[1741032853656,0.587945,86212.0,86211.0,5e-08]
[1741032853863,0.531986,86212.0,86211.0,5e-08]
[1741032854088,0.3,86210.0,86165.0,0.0465]
[1741032854437,0.3,86208.0,86143.0,0.0455]
[1741032854645,0.3,86208.0,86137.0,0.0828]
[1741032854646,0.3,86162.0,86137.0,0.0828]
[1741032854821,0.232155,86150.0,86137.0,0.0828]
[1741032854989,0.232141,86155.0,86133.0,0.19756]
[1741032855178,0.3,86153.0,86131.0,0.01555]
[1741032855410,0.3,86132.0,86131.0,0.01555]
[1741032855611,0.532201,86132.0,86131.0,0.01555]
[1741032856020,0.532201,86132.0,86131.0,0.01594687]
[1741032856218,0.53225,86114.0,86113.0,0.00249686]
[1741032856420,0.658932,86114.0,86113.0,0.00249686]
[1741032856595,0.3,86114.0,86113.0,0.00249686]
[1741032857638,0.53225,86114.0,86113.0,0.00249686]
[1741032857961,0.3,86114.0,86113.0,0.00249686]
[1741032858503,0.00039606,86132.0,86113.0,0.00249686]
[1741032859082,0.53225,86114.0,86113.0,0.00249686]
[1741032859298,0.829372,86114.0,86113.0,0.00249686]
[1741032859522,0.53225,86114.0,86113.0,0.00249686]
[1741032859776,0.3,86114.0,86113.0,0.00249686]
[1741032859938,0.53225,86114.0,86113.0,0.00249686]
[1741032860560,0.597267,86114.0,86113.0,0.00249686]
[1741032860764,0.23225,86114.0,86113.0,0.00249686]
[1741032860967,0.3839,86114.0,86113.0,0.00249686]
[1741032861167,0.232255,86112.0,86111.0,0.97349685]
[1741032861366,0.232235,86120.0,86111.0,0.97349685]
[1741032861649,0.06295293,86144.0,86111.0,0.97349685]
[1741032861876,0.08104786,86144.0,86126.0,0.232215]
[1741032862081,0.08104786,86144.0,86123.0,0.4]
[1741032862279,0.08104786,86144.0,86131.0,0.732204]
[1741032862565,0.08104786,86144.0,86143.0,0.732172]
[1741032862772,0.01809493,86144.0,86143.0,0.5]
[1741032862988,0.01809493,86144.0,86143.0,0.732172]
[1741032863275,0.01809493,86144.0,86132.0,0.0487]
[1741032863276,0.01809493,86144.0,86133.0,0.1]
[1741032863426,0.01809493,86144.0,86139.0,0.1]
[1741032863836,0.01809493,86144.0,86143.0,0.2]
[1741032864030,0.00162292,86182.0,86145.0,0.1]
[1741032864231,2.482217,86181.0,86137.0,0.1]
[1741032864455,0.00162292,86180.0,86124.0,0.1]
[1741032864654,0.01820063,86188.0,86122.0,0.00039606]
[1741032864858,0.0784,86177.0,86122.0,0.00039606]
[1741032865101,4.12089392,86176.0,86122.0,0.00039606]
[1741032865401,0.232184,86139.0,86122.0,0.00039606]
[1741032865527,0.232197,86134.0,86122.0,0.00039606]
[1741032865721,0.232067,86182.0,86122.0,0.00039606]
[1741032865924,0.232226,86123.0,86122.0,0.00039606]
[1741032866130,0.232226,86123.0,86113.0,0.0003394]
[1741032866131,0.232255,86112.0,86111.0,0.9448363]
[1741032866465,0.373165,86112.0,86111.0,0.73227374]
[1741032866877,0.373165,86112.0,86111.0,7.5e-07]
[1741032867087,0.232298,86096.0,86062.0,0.0451]
[1741032867261,0.443437,86096.0,86062.0,0.0451]
[1741032867463,0.232298,86096.0,86067.0,0.1]
[1741032867672,0.020962,86096.0,86073.0,0.1]
[1741032867871,0.020962,86096.0,86088.0,0.1]
[1741032868151,0.020962,86096.0,86095.0,0.11555]
[1741032868286,0.020962,86096.0,86095.0,0.823251]
[1741032868483,0.03078884,86181.0,86125.0,0.1]
[1741032868686,0.01820864,86157.0,86128.0,0.1]
[1741032868887,0.01820864,86157.0,86126.0,0.19894523]
[1741032868888,0.00039638,86138.0,86136.0,0.1]
[1741032869238,0.00039638,86138.0,86126.0,0.19732]
[1741032869439,0.00039638,86138.0,86131.0,0.1]
[1741032869607,0.00039638,86138.0,86137.0,0.1]
[1741032869808,0.00039638,86138.0,86126.0,0.19732]
[1741032869809,0.00039638,86138.0,86127.0,0.1]
[1741032870016,0.232215,86127.0,86126.0,0.19732]
[1741032870222,0.232215,86127.0,86095.0,0.13815]
[1741032870223,0.00039638,86138.0,86106.0,0.1]
[1741032870424,0.00039638,86138.0,86099.0,0.29728]
[1741032870425,0.180937,86137.0,86099.0,0.29728]
[1741032870632,0.00162292,86136.0,86099.0,0.19728]
[1741032870850,1.419203,86135.0,86099.0,0.19890587]
[1741032871053,0.19105492,86134.0,86102.0,0.1]
[1741032871256,0.00162292,86134.0,86107.0,0.1]
[1741032871460,0.232228,86123.0,86102.0,0.07099999]
[1741032871777,0.3,86121.0,86099.0,0.19728]
[1741032871961,0.232254,86113.0,86099.0,0.19728]
[1741032872103,0.3,86121.0,86099.0,0.19728]
[1741032872303,0.3,86119.0,86099.0,0.19728]
[1741032872530,0.232264,86109.0,86099.0,0.19728]
[1741032872727,0.232288,86100.0,86099.0,0.19728]
[1741032872986,0.232288,86100.0,86095.0,0.01555]
[1741032872987,0.532298,86096.0,86095.0,0.01555]
[1741032873266,0.532344,86079.0,86060.0,0.01555]
[1741032873465,2.962254,86079.0,86060.0,0.01555]
[1741032873669,0.669096,86079.0,86078.0,1e-06]
[1741032873874,0.532393,86061.0,86060.0,1e-08]
[1741032874414,0.232393,86061.0,86060.0,1e-08]
[1741032874683,0.348515,86080.0,86060.0,1e-08]
[1741032874684,0.232351,86077.0,86060.0,1e-08]
[1741032874907,0.24622892,86076.0,86060.0,1e-08]
[1741032875065,0.343925,86075.0,86060.0,1e-08]
[1741032875285,0.00162292,86074.0,86060.0,1e-08]
[1741032875482,0.06296097,86098.0,86060.0,1e-08]
[1741032875483,0.232393,86061.0,86060.0,1e-08]
[1741032876087,0.232401,86059.0,86035.0,0.00162713]
[1741032876289,1.16782963,86092.0,86042.0,0.00011899]
[1741032876290,0.06296097,86087.0,86042.0,0.00011899]
[1741032876519,0.232328,86085.0,86042.0,0.00011899]
[1741032876645,1.82556292,86084.0,86045.0,0.07475059]
[1741032876852,1.82556292,86084.0,86042.0,0.00011899]
[1741032876853,0.232371,86069.0,86047.0,0.07475059]
[1741032877105,0.06296097,86087.0,86051.0,0.07475059]
[1741032877309,0.00162292,86086.0,86057.0,0.07099999]
[1741032877463,0.22669292,86086.0,86042.0,0.00011899]
[1741032877662,0.232441,86043.0,86042.0,0.00011899]
[1741032878338,0.232441,86043.0,86042.0,9.9e-07]
[1741032878537,0.23249,86025.0,85997.0,0.0755]
[1741032878744,0.23249,86025.0,86024.0,0.00073662]
[1741032878962,0.4136,86025.0,86024.0,0.00073662]
[1741032879167,0.4136,86025.0,85991.0,0.0478]
[1741032879168,0.232555,86001.0,85991.0,0.0478]
[1741032879370,0.232555,86001.0,86000.0,0.05011917]
[1741032879745,0.03348036,86025.0,86000.0,0.05011917]
[1741032879973,1.14258022,86052.0,86000.0,0.05011917]
[1741032879974,0.03348036,86001.0,86000.0,0.05011917]
[1741032880183,0.03348036,86001.0,86000.0,0.19586975]
[1741032880333,0.03348036,86001.0,86000.0,0.77795542]
[1741032880536,0.03348036,86001.0,86000.0,0.09801917]
[1741032880736,0.26603536,86001.0,86000.0,0.05011917]
[1741032881001,0.03348036,86001.0,86000.0,0.05011917]
[1741032881150,0.03348036,86001.0,86000.0,0.02111916]
[1741032881333,0.25507361,86001.0,86000.0,0.02111916]
[1741032881539,0.232582,85991.0,85990.0,1e-06]
[1741032881761,2.862618,85991.0,85990.0,1e-06]
[1741032881983,2.170165,85991.0,85990.0,1e-06]
[1741032882183,1.551436,85991.0,85990.0,1e-06]
[1741032882353,0.08385666,85991.0,85990.0,1e-06]
[1741032882783,0.31643866,85991.0,85990.0,1e-06]
[1741032882953,0.42881166,85991.0,85990.0,1e-06]
[1741032883164,0.31643866,85991.0,85990.0,1e-06]
[1741032883373,0.42477866,85991.0,85990.0,1e-06]
[1741032883592,0.70129666,85991.0,85990.0,1e-06]
[1741032883796,0.41310959,85991.0,85990.0,1e-06]
[1741032884337,0.43134836,85991.0,85990.0,1e-06]
[1741032884485,0.41328336,85991.0,85990.0,1e-06]
[1741032884693,0.07248936,85991.0,85990.0,1e-06]
[1741032884868,0.30669428,85991.0,85990.0,1e-06]
[1741032885071,0.07248936,85991.0,85990.0,1e-06]
[1741032885280,0.28683259,85991.0,85990.0,1e-06]
[1741032885480,0.05425059,85991.0,85990.0,1e-06]
[1741032885771,0.28683259,85991.0,85990.0,1e-06]
[1741032885931,0.41293859,85991.0,85990.0,1e-06]
[1741032886131,0.41293859,85991.0,85961.0,0.07475059]
[1741032886132,0.05425059,85991.0,85960.0,0.05822938]
[1741032886405,0.00162292,85990.0,85965.0,0.07475059]
[1741032886678,0.232617,85979.0,85965.0,0.07475059]
[1741032886880,0.01823776,85989.0,85969.0,0.07475059]
[1741032887090,0.00162292,85988.0,85963.0,0.07475059]
[1741032887299,1.80827392,85988.0,85965.0,0.07475059]
[1741032887439,0.05425059,85988.0,85972.0,0.07475059]
[1741032887656,0.05425059,85988.0,85960.0,0.00162849]
[1741032887869,0.18222292,85987.0,85974.0,0.07475059]
[1741032888127,0.05425059,85988.0,85957.0,0.0001192]
[1741032888128,0.05425059,85988.0,85984.0,0.07475059]
[1741032888294,0.01823776,85989.0,85976.0,0.07475059]
[1741032888295,0.02089569,85986.0,85976.0,0.07475059]
[1741032888579,0.171525,85985.0,85971.0,0.07475059]
[1741032888807,0.10402292,85985.0,85971.0,0.07475059]
[1741032889067,0.232659,85963.0,85956.0,0.07508959]
[1741032889277,0.02089569,85986.0,85966.0,0.07475059]
[1741032889505,0.02089569,85986.0,85980.0,0.07475059]
[1741032889675,0.02089569,85986.0,85985.0,0.15235059]
[1741032889933,0.02089569,85986.0,85985.0,0.21057997]
[1741032890117,0.02089569,85986.0,85985.0,0.13582938]
[1741032890329,0.05414735,85986.0,85985.0,0.21057997]
[1741032890534,0.05414735,85986.0,85985.0,0.74317797]
[1741032890759,0.01960648,86020.0,86014.0,0.07475059]
[1741032890967,0.01960648,86020.0,86017.0,0.07475059]
[1741032891098,0.00011873,86020.0,86006.0,0.07475059]
[1741032891300,0.232511,86018.0,86006.0,0.13297997]
[1741032891505,0.00162292,86017.0,86001.0,0.07475059]
[1741032891712,0.00011873,86020.0,86019.0,0.07475059]
[1741032891910,0.00011873,86020.0,86013.0,0.07475059]
[1741032892279,0.23262273,86020.0,86013.0,0.07475059]
[1741032892586,0.00011873,86020.0,86019.0,0.07475059]
[1741032892698,0.00011873,86020.0,86015.0,0.07475059]
[1741032893057,0.00011873,86020.0,86019.0,0.04975058]
[1741032893707,0.00011873,86020.0,86019.0,0.19047996]
[1741032893910,0.06296097,86061.0,86052.0,0.04975058]
[1741032894050,0.06296097,86061.0,86019.0,0.13202713]
[1741032894051,0.232439,86044.0,86043.0,0.04975058]
[1741032894249,0.232439,86044.0,86036.0,0.05822938]
[1741032894250,0.06048117,86057.0,86031.0,0.04975058]
[1741032894485,0.43329092,86056.0,86019.0,0.0825]
[1741032894684,0.697346,86055.0,86024.0,0.04975058]
[1741032894886,0.00039726,86057.0,86041.0,0.04975058]
[1741032895091,0.00162292,86056.0,86030.0,0.05822938]
[1741032895309,0.4158185,86056.0,86015.0,0.05822938]
[1741032895483,2.261089,86055.0,86019.0,0.04975058]
[1741032895684,2.261089,86055.0,86010.0,0.05822938]
[1741032895685,0.00162292,86054.0,86022.0,0.04975058]
[1741032895909,0.26940092,86054.0,86030.0,0.04975058]
[1741032896113,0.01822558,86056.0,86044.0,0.04975058]
[1741032896433,0.01822558,86056.0,86044.0,0.02075057]
[1741032896758,0.00162292,86055.0,86032.0,0.05822938]
[1741032896929,0.232474,86031.0,86030.0,0.02098847]
[1741032897152,0.232474,86031.0,86030.0,0.0002379]
[1741032897564,0.01960648,86054.0,86025.0,0.02075057]
[1741032897565,0.0182276,86044.0,86025.0,0.02075057]
[1741032897862,0.232493,86024.0,86023.0,0.02075057]
[1741032898005,0.232459,86037.0,86026.0,0.02075057]
[1741032898207,0.01960648,86054.0,86043.0,0.02075057]
[1741032898417,0.01960648,86054.0,86033.0,0.05822938]
[1741032898618,0.01960648,86054.0,86019.0,0.3]
[1741032898619,0.01960648,86054.0,86044.0,0.02075057]
[1741032898815,0.01822663,86061.0,86041.0,0.02075057]
[1741032898816,0.00162292,86053.0,86041.0,0.02075057]
[1741032899014,0.232436,86046.0,86043.0,0.02075057]
[1741032899442,0.232425,86049.0,86048.0,0.02075057]
[1741032899652,0.01594626,86060.0,86029.0,0.05822938]
[1741032899866,2.39807292,86059.0,86024.0,0.02075057]
[1741032900201,2.560033,86058.0,86024.0,0.02075057]
[1741032900411,2.560033,86058.0,86004.0,0.0769]
[1741032900412,0.00162292,86057.0,86022.0,0.02075057]
[1741032900607,0.00162292,86057.0,86013.0,0.05822938]
[1741032900608,0.232517,86015.0,86014.0,0.02075057]
[1741032900981,0.232587,85989.0,85988.0,0.0751]
[1741032901176,1.162373,86031.0,85996.0,0.02075057]
[1741032901379,0.885332,86030.0,85999.0,0.02075057]
[1741032901584,0.0486,86072.0,86024.0,0.02075057]
[1741032901807,0.05850521,86093.0,86024.0,0.02075057]
[1741032901808,0.00162292,86059.0,86056.0,0.05822938]
[1741032901990,0.01960648,86067.0,86056.0,0.05822938]
[1741032901991,0.01822865,86064.0,86056.0,0.61138595]
[1741032902199,0.01960648,86067.0,86056.0,0.61138595]
[1741032902200,0.01960648,86067.0,86066.0,0.61135895]
[1741032902487,0.06310293,86103.0,86077.0,0.61132995]
[1741032902658,0.06310293,86103.0,86095.0,0.07897995]
[1741032902863,0.247847,86096.0,86095.0,0.02075057]
[1741032903087,0.407488,86096.0,86095.0,0.02075057]
[1741032903305,0.407488,86096.0,86086.0,0.05822938]
[1741032903306,0.01594651,86096.0,86086.0,0.05822938]
[1741032903542,0.01594651,86096.0,86095.0,0.02075057]
[1741032903744,0.0706663,86096.0,86095.0,0.02075057]
[1741032903968,0.3029643,86096.0,86095.0,0.02075057]
[1741032904173,0.232328,86085.0,86081.0,0.02075057]
[1741032904356,0.23236,86073.0,86072.0,0.02075057]
[1741032904561,0.08888071,86096.0,86080.0,0.02075057]
[1741032904845,0.02104607,86084.0,86067.0,0.02075057]
[1741032904983,0.00162292,86083.0,86062.0,0.02075057]
[1741032905199,0.02104607,86084.0,86083.0,0.02075057]
[1741032905434,0.02104607,86084.0,86083.0,0.07897995]
[1741032905645,0.02104607,86084.0,86068.0,0.05822938]
[1741032905646,0.232371,86069.0,86068.0,0.05822938]
[1741032905866,0.232371,86069.0,86049.0,0.19684]
[1741032905867,0.02104607,86084.0,86061.0,0.02075057]
[1741032906087,0.26136292,86083.0,86058.0,0.05822938]
[1741032906307,0.0476,86094.0,86044.0,0.02075057]
[1741032906308,0.232436,86045.0,86044.0,0.02075057]
[1741032906525,0.04177062,86076.0,86027.0,0.02075057]
[1741032906728,0.0484,86055.0,86013.0,0.17659056]
[1741032906926,0.00039702,86045.0,86043.0,0.05822938]
[1741032907105,0.00039702,86045.0,86044.0,0.29066838]
[1741032907323,0.00039702,86045.0,86044.0,0.05822938]
[1741032907734,0.00039702,86045.0,86026.0,0.05822938]
[1741032907927,0.232465,86035.0,86026.0,0.05822938]
[1741032908145,0.155345,86034.0,86026.0,0.05822938]
[1741032908348,0.0214126,86045.0,86032.0,0.05822938]
[1741032908642,0.121812,86044.0,86032.0,0.05822938]
[1741032908820,0.121812,86044.0,86019.0,0.05822938]
[1741032908821,0.3,86043.0,86019.0,0.05822938]
[1741032909034,0.00162292,86042.0,86019.0,0.05822938]
[1741032909226,0.3,86043.0,86019.0,0.05822938]
[1741032909432,0.05462986,86042.0,86041.0,0.05822938]
[1741032909817,0.05462986,86042.0,86041.0,0.59067638]
[1741032910036,0.0467,86127.0,86088.0,0.05822938]
[1741032910246,0.232347,86078.0,86077.0,0.05822938]
[1741032910403,0.22517392,86095.0,86048.0,0.00162617]
[1741032910404,0.00011915,86095.0,86070.0,0.05822938]
[1741032910613,0.278313,86094.0,86066.0,0.05822938]
[1741032910859,0.278313,86094.0,86049.0,0.05822938]
[1741032910860,0.0457,86090.0,86049.0,0.05822938]
[1741032911058,0.0001698,86078.0,86056.0,0.02922937]
[1741032911258,0.127287,86077.0,86061.0,0.02922937]
[1741032911460,0.00011915,86095.0,86041.0,0.0805]
[1741032911461,0.232398,86059.0,86058.0,0.25]
[1741032911614,0.232398,86059.0,86058.0,0.10011915]
[1741032911823,0.232398,86059.0,86058.0,0.00011915]
[1741032912444,0.232344,86079.0,86062.0,0.1]
[1741032912645,0.232375,86068.0,86064.0,0.1]
[1741032912864,0.232346,86079.0,86064.0,0.1]
[1741032913058,0.23235,86077.0,86071.0,0.1]
[1741032913237,0.232359,86074.0,86071.0,0.1]
[1741032913381,0.0182203,86080.0,86071.0,0.1]
[1741032913588,1.470506,86079.0,86071.0,0.1]
[1741032913789,0.10018281,86082.0,86081.0,0.25]
[1741032913988,0.10018281,86082.0,86081.0,0.563939]
[1741032914238,0.01821637,86118.0,86117.0,0.25]
[1741032914409,0.0001701,86149.0,86138.0,0.1]
[1741032914625,0.0001701,86149.0,86088.0,0.1]
[1741032914626,0.0001701,86149.0,86147.0,0.1]
[1741032914969,0.0001701,86149.0,86103.0,0.3]
[1741032914970,0.0001701,86149.0,86138.0,0.1]
[1741032915178,0.2322,86133.0,86130.0,0.1]
[1741032915377,0.0001701,86149.0,86124.0,0.15]
[1741032915568,1.898287,86147.0,86134.0,0.1]
[1741032915771,1.898287,86147.0,86081.0,0.0816]
[1741032915772,1.72102,86146.0,86108.0,0.1]
[1741032915927,0.01820742,86144.0,86109.0,0.1]
[1741032916127,0.01820742,86144.0,86128.0,0.1]
[1741032916128,1.181746,86143.0,86128.0,0.1]
[1741032916394,0.25037842,86144.0,86141.0,0.07099999]
[1741032916596,0.232199,86133.0,86132.0,0.07099999]
[1741032916797,0.232228,86122.0,86121.0,0.07099999]
[1741032917025,0.01820742,86144.0,86125.0,0.07099999]
[1741032917196,0.01820742,86144.0,86100.0,5e-05]
[1741032917197,0.01820742,86144.0,86133.0,0.07099999]
[1741032917396,0.232207,86130.0,86129.0,0.15]
[1741032917620,0.01820742,86144.0,86131.0,0.07099999]
[1741032917849,0.01820742,86144.0,86139.0,0.07099999]
[1741032918066,0.015549,86148.0,86143.0,0.07099999]
[1741032918256,0.01594594,86148.0,86147.0,0.07099999]
[1741032918481,0.01594594,86148.0,86147.0,0.22099999]
[1741032918612,0.01594594,86148.0,86147.0,0.45316099]
[1741032918821,0.01594594,86148.0,86147.0,0.75316099]
[1741032919025,0.015549,86166.0,86164.0,0.15]
[1741032919229,0.015549,86166.0,86164.0,0.22099999]
[1741032919587,0.02089449,86207.0,86182.0,0.22099999]
[1741032920129,0.02089449,86207.0,86182.0,0.75306699]
[1741032920324,0.02089449,86207.0,86182.0,0.15]
[1741032920525,0.232011,86203.0,86182.0,0.22099999]
[1741032920729,0.01819732,86220.0,86182.0,0.22099999]
[1741032920930,0.01819732,86220.0,86182.0,0.45306699]
[1741032921182,0.23197,86218.0,86182.0,0.42317166]
[1741032921330,0.01819732,86220.0,86182.0,0.19110466]
[1741032921532,0.01819732,86220.0,86182.0,0.72317166]
[1741032921811,0.01819732,86220.0,86182.0,0.49110466]
[1741032921998,0.0457,86250.0,86182.0,0.49110466]
[1741032922172,0.0457,86250.0,86173.0,0.13028771]
[1741032922173,0.01566794,86201.0,86200.0,0.19110466]
[1741032922573,0.01566794,86201.0,86200.0,0.49272842]
[1741032922928,0.01566794,86201.0,86200.0,0.49110466]
[1741032923137,0.01566794,86201.0,86200.0,0.19110466]
[1741032924181,0.01566794,86201.0,86200.0,0.12010467]
[1741032924375,0.01566794,86201.0,86200.0,0.07099999]
[1741032924576,0.01566794,86201.0,86200.0,0.19110466]
[1741032924913,0.01566794,86201.0,86200.0,0.12010467]
[1741032925116,0.01566794,86201.0,86190.0,0.12010467]
[1741032925280,0.232022,86199.0,86190.0,0.12010467]
[1741032925628,0.232022,86199.0,86177.0,0.19632]
[1741032925629,0.236186,86198.0,86189.0,0.12010467]
[1741032925755,0.01566794,86201.0,86200.0,0.07099999]
[1741032925954,0.01566794,86201.0,86200.0,0.19110466]
[1741032926155,0.01566794,86201.0,86200.0,0.10410467]
[1741032926362,0.01566794,86201.0,86200.0,0.40712266]
[1741032926599,0.01566794,86201.0,86200.0,0.17510466]
[1741032926902,0.01566794,86201.0,86200.0,0.70874658]
[1741032927056,0.01566794,86201.0,86200.0,0.70712266]
[1741032927479,0.01566794,86201.0,86200.0,0.47510466]
[1741032927682,0.01566794,86201.0,86200.0,0.17510466]
[1741032928087,0.01566794,86201.0,86200.0,0.17672856]
[1741032928290,0.01566794,86201.0,86200.0,0.17510466]
[1741032928709,0.01566794,86201.0,86200.0,0.40874655]
[1741032928958,0.01566794,86201.0,86200.0,0.70712266]
[1741032928959,0.01407351,86201.0,86200.0,0.70712266]
[1741032929127,0.0157185,86219.0,86218.0,0.17510466]
[1741032929328,0.0157185,86219.0,86218.0,0.70707466]
[1741032929751,0.0157185,86219.0,86218.0,0.47510466]
[1741032929928,0.0107185,86219.0,86218.0,0.70707466]
[1741032930779,0.0107185,86219.0,86218.0,0.47510466]
[1741032930991,0.0107185,86219.0,86218.0,0.17510466]
[1741032931119,0.0107185,86219.0,86218.0,0.37807465]
[1741032931325,0.0107185,86219.0,86218.0,0.14610465]
[1741032931967,0.0107185,86219.0,86218.0,0.37807465]
[1741032932174,0.0107185,86219.0,86218.0,0.77807465]
[1741032932372,7e-05,86229.0,86222.0,0.80116365]
[1741032932704,7e-05,86229.0,86228.0,0.67804765]
[1741032932941,0.0001889,86229.0,86228.0,0.68464766]
[1741032933162,0.004653,86285.0,86235.0,0.67802865]